Cogmind - Beta 11 @@@ ROGUE MODE // 2022.03.20 @ 15:26:51 Player: Finestep Result: Smashed by cave-in Performance ------------- Evolutions (1) 500 Regions Visited (6) 1200 Robots Destroyed (94) 470 Value Destroyed (1852) 1852 Prototype IDs (34) 680 Alien Tech Used (0) 0 Bonus (-665) -665 TOTAL SCORE: 4037 Bonus ------- High Alert Combat Kills 65 Aligned with FarCom 300 Friendly Fire -1030 Cogmind --------- Core Integrity 0/400 Matter 182/300 Energy 100/100 System Corruption 1% Temperature Cool (0) Movement Core (400) Ox7 Location -8/Mines Parts ------- > --- POWER (1) -------- (None) > --- PROPULSION (2) --- (None) > --- UTILITY (3) ------ 8R-AWN's Armor/EX > --- WEAPON (3) ------- (None) > --- INVENTORY (5) ---- Cold Fusion Reactor Hacking Suite Peak State ------------ > --- POWER ------------ Cooled Ion Engine > --- PROPULSION ------- Light Treads Light Treads > --- UTILITY ---------- Large Storage Unit Experimental Targeting Computer System Purifier > --- WEAPON ----------- Improved Assault Rifle Improved Assault Rifle Improved Assault Rifle > --- INVENTORY -------- Cold Fusion Reactor High-capacity Matter Pod Weapon Shielding Improved Light Armor Plating 8R-AWN's Armor/EX Latent Energy Streamer Guided Plasma Cannon Improved Assault Rifle 8R-AWN's Boregun Grenade Launcher Ripper [Rating: 37] Favorites ----------- Power Light Nuclear Core Engine Light Ion Engine Power Core Light Nuclear Core Reactor Cold Fusion Reactor Propulsion Light Treads Treads Light Treads Leg Aluminum Leg Utility Large Storage Unit Device Improved Terrain Scanner Storage Large Storage Unit Processor Improved Targeting Computer Protection Improved Light Armor Plating Weapon Autogun Energy Gun Medium Laser Energy Cannon Guided Plasma Cannon Ballistic Gun Autogun Launcher Grenade Launcher Build | -11 -10 -10 -9 -9 -9 -8 ------- Run | Scr Mat Min Mat Min Exi Min Slots Evolved 2 | . . . 2 . . . Power . | . . . . . . . Propulsion . | . . . . . . . Utility 1 | . . . 1 . . . Weapon 1 | . . . 1 . . . Parts Attached 72 | 7 15 1 15 4 27 3 Power 12 | 1 2 1 3 . 5 . Engine 9 | 1 2 . 2 . 4 . Core 2 | . . 1 1 . . . Reactor 1 | . . . . . 1 . Propulsion 14 | 2 4 . 4 1 3 . Treads 11 | . 3 . 4 1 3 . Leg 3 | 2 1 . . . . . Wheel . | . . . . . . . Hover . | . . . . . . . Flight . | . . . . . . . Utility 22 | 2 3 . 4 . 11 2 Device 5 | 1 . . . . 4 . Storage 2 | 1 1 . . . . . Processor 3 | . 1 . 1 . 1 . Hackware . | . . . . . . . Protection 12 | . 1 . 3 . 6 2 Artifact . | . . . . . . . Weapon 24 | 2 6 . 4 3 8 1 Energy Gun 1 | 1 . . . . . . Energy Cannon 1 | . . . . . 1 . Ballistic Gun 18 | 1 5 . 3 2 6 1 Ballistic Cannon . | . . . . . . . Launcher 4 | . 1 . 1 1 1 . Special Weapon . | . . . . . . . Impact Weapon . | . . . . . . . Slashing Weapon . | . . . . . . . Piercing Weapon . | . . . . . . . Special Melee Weapon . | . . . . . . . Unidentified Prototypes 8 | . . . 1 . 6 1 Parts Lost 15 | . 1 . 1 . 6 7 Power 3 | . 1 . . . 1 1 Propulsion 4 | . . . . . 2 2 Utility 3 | . . . 1 . 1 1 Weapon 5 | . . . . . 2 3 Highest Loss Streak 7 | . 1 . 1 . 6 7 To Critical Strikes 3 | . . . . . 3 . Average Slot Usage (%) 98 | . 99 100 99 99 96 69 Engine 6 | . 13 12 1 . 4 9 Core 5 | . . 1 9 11 5 . Treads 21 | . 16 28 21 22 21 12 Leg 2 | . 10 . . . . . Storage 11 | . 14 14 11 11 11 8 Processor 10 | . 8 14 8 11 11 8 Protection 7 | . 1 . 13 11 9 11 Ballistic Gun 29 | . 24 28 32 32 31 19 Naked Turns . | . . . . . . . Heaviest Build 40 | 13 32 31 38 37 40 40 Greatest Support 40 | 20 40 40 40 40 40 40 Greatest Overweight (x) 10 | 1 1 . 1 . . 10 Average Overweight (x) . | . . . . . . 1 Largest Inventory Capacity 15 | 8 15 15 15 15 15 15 Average Capacity 14 | 7 12 15 15 15 15 12 Most Carried 15 | 7 15 15 15 15 15 15 Average Carried 13 | 5 11 14 14 14 13 11 Final Capacity 15 | 8 15 15 15 15 15 5 Final Carried 15 | 7 15 15 15 15 15 2 Class Distribution -------------------- 55% | Gunner 39% | Mutant 5% | Tank Dominant Class ---------------- Mutant | -10/Materials Mutant | -10/Mines Gunner | -9/Materials Gunner | -9/Mines Gunner | -9/Exiles Mutant | -8/Mines Resources | -11 -10 -10 -9 -9 -9 -8 ----------- Run | Scr Mat Min Mat Min Exi Min Matter Collected 2706 | 299 463 166 979 167 632 . Remotely . | . . . . . . . Salvage Created 3181 | 164 802 177 1548 106 384 . Parts 242 | 15 48 14 109 3 53 . Haulers Intercepted 6 | . 2 . 4 . . . Recyclers Shooed 3 | . 2 . 1 . . . Parts Field Recycled . | . . . . . . . Retrieved Matter . | . . . . . . . Parts Self-Destructed . | . . . . . . . Prevented . | . . . . . . . Kills | -11 -10 -10 -9 -9 -9 -8 ------- Run | Scr Mat Min Mat Min Exi Min Combat Hostiles Destroyed 54 | . 15 2 26 3 8 . Guns 45 | . 15 2 22 2 4 . AOE 9 | . . . 4 1 4 . Classes Destroyed 14 | 2 6 1 1 1 3 . Worker 2 | . 1 . 1 . . . Builder 4 | . . 1 3 . . . Tunneler 8 | 5 1 1 . 1 . . Hauler 6 | . 2 . 4 . . . Recycler 7 | 1 2 1 3 . . . Operator 2 | . 1 . 1 . . . Turret 1 | . . . . . 1 . Watcher 6 | . 1 . 5 . . . Swarmer 10 | . 6 . 4 . . . Grunt 31 | . 9 2 18 2 . . Sentry 4 | . . . 4 . . . Demolisher 1 | . . . . 1 . . Zionite 8 | . . . . . 8 . Assembled 7 | . . . . . 7 . Best Kill Streak 14 | 4 3 3 14 2 11 . Combat Bots Only 7 | . 3 2 7 2 7 . Max Kills in Single Turn 2 | 1 1 1 2 1 2 . Gunslinging 1 | . . . 1 . 1 . Exploded 2 | . . . 2 1 2 . Melee . | . . . . . . . Uniques/NPCs Destroyed 5 | . . . . 1 4 . YI-UF0 (-9/Mines) 8R-AWN (-9/Exiles) EX-DEC (-9/Exiles) EX-BIN (-9/Exiles) EX-HEX (-9/Exiles) Combat | -11 -10 -10 -9 -9 -9 -8 -------- Run | Scr Mat Min Mat Min Exi Min Damage Taken 3337 | . 485 115 391 82 927 1337 Core 528 | . 103 11 29 22 83 280 Absorbed by Shields . | . . . . . . . Redirected to Shielding 101 | . . . 15 . 53 33 Regen/Repaired (Parts) 86 | . 86 . . . . . Core Remaining (%) 77 | 100 . 54 . . . . Volleys Fired 249 | 13 76 14 70 11 60 5 Largest 3 | 2 2 2 3 3 3 2 Hottest 120 | 70 70 46 69 69 120 53 Shots Fired 592 | 26 149 28 204 27 148 10 Gun 570 | 26 148 28 201 24 133 10 Cannon 11 | . . . . . 11 . Launcher 11 | . 1 . 3 3 4 . Special . | . . . . . . . Kinetic 539 | 13 130 28 201 24 133 10 Thermal 42 | 13 18 . . . 11 . Explosive 11 | . 1 . 3 3 4 . Electromagnetic . | . . . . . . . Robot Hit Streak 31 | 3 16 6 11 9 31 15 Robot Miss Streak 4 | 2 4 3 4 1 2 1 Penetration Max . | . . . . . . . Secondary Targets 9 | . 3 . 3 . 3 . Max Gunslinging Chain 1 | . 1 . 1 . 1 . Shots Hit Robots 380 | 13 97 16 124 16 105 9 Core Hits 179 | 6 38 10 63 9 53 . Critical Kills . | . . . . . . . Critical Parts Destroyed 1 | . . . . . . 1 Critical Strikes 3 | 1 . . . . . 2 Burn 1 | 1 . . . . . . Destroy 2 | . . . . . . 2 Melee Attacks . | . . . . . . . Impact . | . . . . . . . Slashing . | . . . . . . . Piercing . | . . . . . . . Sneak Attacks . | . . . . . . . Combat Hostiles . | . . . . . . . Follow-up Attacks . | . . . . . . . Damage Inflicted 6327 | 178 1147 250 2064 430 2182 76 Guns 5336 | 178 1147 242 1938 207 1548 76 Cannons 187 | . . . . . 187 . Explosions 796 | . . . 126 223 447 . Melee . | . . . . . . . Ramming 8 | . . 8 . . . . Kinetic 5101 | 66 1024 242 1938 207 1548 76 Thermal 422 | 112 123 . . . 187 . Explosive 796 | . . . 126 223 447 . Electromagnetic . | . . . . . . . Impact . | . . . . . . . Slashing . | . . . . . . . Piercing . | . . . . . . . Highest Corruption 1 | . . . 1 1 1 1 Average Corruption 1 | . . . 1 1 1 1 Corruption Purged . | . . . . . . . Corruption Blocked . | . . . . . . . Effects 13 | . . . 1 5 7 . Message Errors 4 | . . . 1 1 2 . Matter Fused 1 | . . . . 1 . . Energy Discharges 3 | . . . . 1 2 . Parts Rejected 2 | . . . . . 2 . Data Loss (minor) 1 | . . . . . 1 . Data Loss (major) 2 | . . . . 2 . . Overload Shots . | . . . . . . . Overflow Damage 3 | . . . . . 3 . Projectiles . | . . . . . . . Explosions 3 | . . . . . 3 . Melee . | . . . . . . . Knockbacks . | . . . . . . . Impact . | . . . . . . . Kinetic . | . . . . . . . Secondary . | . . . . . . . Self-Inflicted Damage 33 | . 11 . . 22 . . Shots 3 | . 1 . . 2 . . Rammed 1 | . . 1 . . . . Targets Rammed 1 | . . 1 . . . . Kicked . | . . . . . . . Crushed . | . . . . . . . Highest Temperature 222 | 27 78 37 123 52 222 . Average Temperature 32 | 10 19 11 37 21 62 . Received Heat Transfer 483 | . 195 60 177 33 . 18 Siege Activations . | . . . . . . . Robots Corrupted . | . . . . . . . Combat Hostiles . | . . . . . . . Parts Fried . | . . . . . . . Impact Corruptions . | . . . . . . . Robots Melted . | . . . . . . . Combat Hostiles . | . . . . . . . Parts Melted 3 | 2 1 . . . . . Heat Transferred 1177 | 407 370 . . . 400 . Parts Sabotaged . | . . . . . . . Parts Stolen . | . . . . . . . Parts Stripped . | . . . . . . . Power Chain Reactions . | . . . . . . . Missiles Intercepted . | . . . . . . . Alert | -11 -10 -10 -9 -9 -9 -8 ------- Run | Scr Mat Min Mat Min Exi Min Peak Influence 634 | 30 360 93 634 305 . . Initial 203 | . 19 83 21 203 . . Average 218 | 12 222 67 384 168 . . Maximum Alert Level 2 | . 1 . 2 1 . . Low Security (%) 45 | 100 26 100 12 58 . 100 Level 1 36 | . 73 . 23 41 . . Level 2 17 | . . . 63 . . . Level 3 . | . . . . . . . Level 4 . | . . . . . . . Level 5 . | . . . . . . . High Security . | . . . . . . . Max Security . | . . . . . . . Squads Dispatched 9 | . 4 1 4 . . . Investigation 6 | . 3 1 2 . . . Extermination . | . . . . . . . Reinforcement 2 | . 1 . 1 . . . Assault 1 | . . . 1 . . . Garrison . | . . . . . . . Intercept . | . . . . . . . Searches Triggered . | . . . . . . . Construction Impeded . | . . . . . . . Haulers Reinforced . | . . . . . . . Active Scanning Responses . | . . . . . . . Cargo Convoy Interrupts . | . . . . . . . Stealth | -11 -10 -10 -9 -9 -9 -8 --------- Run | Scr Mat Min Mat Min Exi Min Distress Signals 4 | . 1 . 3 . . . Communications Jammed . | . . . . . . . Distress Signals . | . . . . . . . Times Spotted 130 | . 30 2 35 3 58 2 Peak Tracking Total 9 | . 3 2 6 2 9 2 Tactical Retreats 8 | . 1 . 1 . 6 . Traps | -11 -10 -10 -9 -9 -9 -8 ------- Run | Scr Mat Min Mat Min Exi Min Traps Triggered 2 | . 1 . 1 . . . Indirectly . | . . . . . . . Trap Hack Attempts . | . . . . . . . Triggered . | . . . . . . . Disarmed . | . . . . . . . Reprogrammed . | . . . . . . . Reused . | . . . . . . . Traps Extracted . | . . . . . . . Installed . | . . . . . . . Triggered . | . . . . . . . Machines | -11 -10 -10 -9 -9 -9 -8 ---------- Run | Scr Mat Min Mat Min Exi Min Machines Disabled 9 | . 2 1 1 . 5 . Max in Single Turn 1 | . 1 1 1 . 1 . Machines Sabotaged . | . . . . . . . Garrisons Compromised . | . . . . . . . Overloaded Fab Kills . | . . . . . . . Hacking | -11 -10 -10 -9 -9 -9 -8 --------- Run | Scr Mat Min Mat Min Exi Min Machines Accessed 20 | . 7 1 10 . 2 . Terminals 12 | . 4 . 8 . . . Fabricators . | . . . . . . . Repair Stations 1 | . 1 . . . . . Recycling Units 4 | . 2 . 2 . . . Scanalyzers . | . . . . . . . Garrison Access . | . . . . . . . Total Hacks 60 | . 25 1 29 . 5 . Successful 37 | . 16 1 15 . 5 . Failed 23 | . 9 . 14 . . . Catastrophic 1 | . . . 1 . . . Database Lockouts . | . . . . . . . Manual 27 | . 12 . 14 . 1 . Terminals 40 | . 15 . 25 . . . Fabricators . | . . . . . . . Repair Stations 4 | . 4 . . . . . Recycling Units 10 | . 6 . 4 . . . Scanalyzers . | . . . . . . . Garrison Access . | . . . . . . . Terminal Hacks 24 | . 6 1 12 . 5 . Record 4 | . . . . . 4 . Part Schematic 3 | . 1 . 2 . . . Prototype ID Bank 2 | . 1 . 1 . . . Open Door 1 | . . 1 . . . . Level Access Points 1 | . . . 1 . . . Terminal Index 1 | . . . 1 . . . Locate Traps 1 | . 1 . . . . . Transport Status 1 | . . . 1 . . . Hauler Manifests 3 | . 1 . 2 . . . Registered Prototypes 1 | . . . 1 . . . Zone Layout 5 | . 2 . 3 . . . EX-Prototype ID Bank 1 | . . . . . 1 . Fabricator Hacks . | . . . . . . . Repair Station Hacks 4 | . 4 . . . . . Scan Component 2 | . 2 . . . . . Repair 2 | . 2 . . . . . Recycling Unit Hacks 2 | . 2 . . . . . Retrieve Components 2 | . 2 . . . . . Scanalyzer . | . . . . . . . Garrison Access Hacks . | . . . . . . . Unauthorized Hacks 7 | . 4 . 3 . . . Terminals 4 | . 2 . 2 . . . Track 4 | . 2 . 2 . . . Fabricators . | . . . . . . . Repair Stations . | . . . . . . . Recycling Units 3 | . 2 . 1 . . . Tunnel 3 | . 2 . 1 . . . Scanalyzers . | . . . . . . . Garrison Access . | . . . . . . . Data Cores Recovered . | . . . . . . . Used . | . . . . . . . Hacking Detections 15 | . 5 . 10 . . . Full Trace Events 1 | . . . 1 . . . Feedback Events . | . . . . . . . Feedback Blocked . | . . . . . . . Robot Schematics Acquired . | . . . . . . . Robots Built . | . . . . . . . Authchips . | . . . . . . . Time . | . . . . . . . Total Robot Build Rating . | . . . . . . . Part Schematics Acquired 3 | . 1 . 2 . . . Parts Built . | . . . . . . . Authchips . | . . . . . . . Time . | . . . . . . . Total Part Build Rating . | . . . . . . . Parts Repaired 2 | . 2 . . . . . Time 52 | . 52 . . . . . Parts Recycled . | . . . . . . . Recycled Matter . | . . . . . . . Retrieved Matter . | . . . . . . . Retrieved Components 16 | . 16 . . . . . Parts Scanalyzed . | . . . . . . . Part Schematics Acquired . | . . . . . . . Parts Damaged . | . . . . . . . Bothacking | -11 -10 -10 -9 -9 -9 -8 ------------ Run | Scr Mat Min Mat Min Exi Min Used RIF Installer . | . . . . . . . Robots Hacked . | . . . . . . . Non-combat . | . . . . . . . Combat . | . . . . . . . Robot Hacks Applied . | . . . . . . . Relay Couplers Released . | . . . . . . . Fabnet Peak Effective % . | . . . . . . . Robots Rewired . | . . . . . . . Allies Hacked . | . . . . . . . Hacks Repelled . | . . . . . . . Allies | -11 -10 -10 -9 -9 -9 -8 -------- Run | Scr Mat Min Mat Min Exi Min Total Allies 1 | . . . . 1 . . Largest Group 1 | . . . . 1 . . Highest-Rated Group 31 | . . . . 31 . . Highest-Rated Ally 31 | . . . . 31 . . Total Orders . | . . . . . . . Ally Attacks 2 | . . . . 2 . . Total Damage 43 | . . . . 43 . . Kills . | . . . . . . . Allies Corrupted . | . . . . . . . Allies Melted . | . . . . . . . Intel | -11 -10 -10 -9 -9 -9 -8 ------- Run | Scr Mat Min Mat Min Exi Min Robot Analysis Total . | . . . . . . . Derelict Logs Recovered 2 | . . 1 . 1 . . Drone Launches . | . . . . . . . Drone Recoveries . | . . . . . . . Exploration | -11 -10 -10 -9 -9 -9 -8 ------------- Run | Scr Mat Min Mat Min Exi Min Turns Passed 5883 | 184 1223 709 1238 965 1480 84 Spaces Moved 3157 | 110 636 416 631 580 753 31 Core 16 | 11 . . . . . 5 Treads 2751 | . 345 416 631 580 753 26 Legs 390 | 99 291 . . . . . Wheels . | . . . . . . . Hover . | . . . . . . . Flight . | . . . . . . . Fastest Speed 50 | 50 120 160 160 160 160 160 Average Speed 155 | 116 142 160 160 160 160 213 Slowest Speed 550 | 120 190 160 240 160 160 550 Overloaded Moves . | . . . . . . . Propulsion Burnouts . | . . . . . . . Robots Hopped . | . . . . . . . Cave-ins Triggered 1 | . . . . . . 1 Exploration Rate (%) 66 | 6 86 88 78 95 90 20 Regions Visited 6 Branch Regions 4 Pre-discovered Areas 6 | . 2 . 1 2 1 . Known Exits Taken . | . . . . . . . Unknown Exits Taken 6 | 1 1 1 1 1 1 . Scrap Searched 5 | . . 2 . 3 . . Spaces Dug 6 | . 6 . . . . . Terrain Destroyed 52 | . 6 . 11 23 10 2 Melee . | . . . . . . . Projectile 2 | . . . . . . 2 AOE 50 | . 6 . 11 23 10 . Terrain Rammed . | . . . . . . . Walls Destroyed . | . . . . . . . Machines Disabled . | . . . . . . . Actions | -11 -10 -10 -9 -9 -9 -8 --------- Run | Scr Mat Min Mat Min Exi Min Total 3710 | 136 817 439 750 603 923 42 Wait 108 | . 59 3 7 . 39 . Move 3151 | 109 635 415 630 579 752 31 Hop . | . . . . . . . Pick Up 59 | 7 17 2 12 4 17 . Fast Attach 30 | 7 5 1 4 . 13 . Attach 20 | . 3 . 5 1 9 2 Detach 4 | . . . . . 4 . Swap 22 | . 7 . 6 3 5 1 Drop 66 | . 15 3 16 5 24 3 Fire 249 | 13 76 14 70 11 60 5 Melee . | . . . . . . . Ram . | . . . . . . . Kick . | . . . . . . . Crush 1 | . . 1 . . . . Escape Stasis . | . . . . . . . Rewire . | . . . . . . . Trap . | . . . . . . . Miscellaneous . | . . . . . . . Route ------- -11/Scrapyard -10/Materials (discovered 4 exits: *Mat x3 / *Min) -10/Mines -9/Materials (discovered 6 exits: Mat x3 / [*Min] / [*Sto x2]) -9/Mines (discovered 3 exits: *Mat x2 / *Exi) -9/Exiles -8/Mines History --------- Turn | Location | Event 10 | -11/Scrapyard | Discovered new exit (range 15) 185 | -11/Scrapyard | Entered Materials 270 | -10/Materials | Discovered new exit (range 16) 302 | -10/Materials | Build established: Mutant 395 | -10/Materials | Discovered new exit (range 8) 598 | -10/Materials | Discovered new exit (range 5) 970 | -10/Materials | Discovered new exit (range 11) 1072 | -10/Materials | Repaired Lgt. Treads 1100 | -10/Materials | Repaired Lgt. Armor Plating 1408 | -10/Materials | Entered Mines 1702 | -10/Mines | Learned Materials stockpile data 2008 | -10/Mines | Met a Derelict shopkeep closing up shop 2100 | -10/Mines | Discovered new exit (range 8) 2117 | -10/Mines | Entered Materials 2117 | -9/Materials | Evolved 2 slots: Utility x1, Weapon x1 2134 | -9/Materials | Discovered new exit (range 11) 2269 | -9/Materials | Discovered new exit (range 8) 2347 | -9/Materials | Destroyed 7 combat bots 2597 | -9/Materials | Build established: Tank 2864 | -9/Materials | Discovered new exit (range 16) 2905 | -9/Materials | Build established: Gunner 3167 | -9/Materials | Identified exit to Materials 3317 | -9/Materials | First assault squad dispatched 3355 | -9/Materials | Entered Mines 3364 | -9/Mines | Escorted by a lone wolf Derelict 3384 | -9/Mines | Learned location of Storage (-9) 3485 | -9/Mines | Assembled infested the area 3641 | -9/Mines | YI-UF0 nonchalantly dropped a Grenade Launcher on the ground 3647 | -9/Mines | Destroyed YI-UF0 3687 | -9/Mines | Discovered exit to Materials (range 5) 3931 | -9/Mines | A weapon hastily lodged in a ceiling crevice suddenly fell to the ground 3946 | -9/Mines | Discovered exit to Materials (range 13) 4312 | -9/Mines | Deemed a non-threat by the Exiles lab entrance 4314 | -9/Mines | Discovered new exit (range 5) 4320 | -9/Mines | Entered Exiles 4422 | -9/Exiles | Met 8R-AWN 4450 | -9/Exiles | Met EX-HEX 4512 | -9/Exiles | Met EX-DEC 4520 | -9/Exiles | Learned location of Zion (-7) 4583 | -9/Exiles | Visited The Gauntlet 4810 | -9/Exiles | Met EX-BIN 4827 | -9/Exiles | Aligned with FarCom system 4829 | -9/Exiles | Given EX-Vault access code 4866 | -9/Exiles | Opened EX-Vault 4879 | -9/Exiles | Found Gui. Plasma Cannon 4884 | -9/Exiles | Found Latent Energy Streamer 4919 | -9/Exiles | Warned to stay clear of 0b10 Research branches 4990 | -9/Exiles | Attacked by the Exiles 5023 | -9/Exiles | Destroyed 7 combat bots 5073 | -9/Exiles | Destroyed 8R-AWN 5082 | -9/Exiles | Lost 6 parts (1p2n1u2w) 5084 | -9/Exiles | Found Prototype Ballistic Gun 5084 | -9/Exiles | Identified 8R-AWN's Boregun 5089 | -9/Exiles | Found Prototype Processor 5089 | -9/Exiles | Identified Exp. Targeting Computer 5098 | -9/Exiles | Found Prototype Protection 5366 | -9/Exiles | Destroyed EX-DEC 5379 | -9/Exiles | Destroyed EX-BIN 5382 | -9/Exiles | Destroyed EX-HEX 5430 | -9/Exiles | Found Prototype Device 5430 | -9/Exiles | Identified System Purifier 5516 | -9/Exiles | Found Prototype Processor 5785 | -9/Exiles | Discovered new exit (range 10) 5800 | -9/Exiles | Entered Mines 5842 | -8/Mines | 99-TNT came to Exiles' defense 5843 | -8/Mines | Core integrity fell below 50% 5861 | -8/Mines | Identified 8R-AWN's Armor/EX 5885 | -8/Mines | Crushed by falling debris 5885 | -8/Mines | Smashed by cave-in Last Messages --------------- 05872_ U-05 Engineer lays Concrete. 05874_ The unstable cave ceiling collapses. 05874_ U-05 Engineer lays Concrete. 05875_ The unstable cave ceiling collapses. 05875_ U-05 Engineer lays Concrete. 05875_ U-05 Engineer builds a Wall. 05876_ The unstable cave ceiling collapses. 05876_ U-05 Engineer lays Concrete. 05876_ Cld. Ion Engine destroyed. 05876_ U-05 Engineer destroyed. 05877_ The unstable cave ceiling collapses. 05877_ T-07 Excavator is excavating. 05878_ The unstable cave ceiling collapses. 05879_ U-05 Engineer lays Concrete. 05880_ The unstable cave ceiling collapses. 05880_ U-05 Engineer builds a Wall. 05881_ The unstable cave ceiling collapses. 05884_ U-05 Engineer builds a Wall. 05885_ The unstable cave ceiling collapses. 05885_ Crushed by falling debris. Map ----- +----------------------------------------------------+ | ?????????????????????????????????????????????????? | | ?????????????????????????????????????????????????? | | ?????????????????????????????????????????????????? | | ?????????????????????????????????????????????????? | | ?????????????????????????????????????????????????? | | ?????????????????????????????????????????????????? | | ?????????????????????????????????????????????????? | | ?????????????????????????????????????????????????? | | ?????????????????????????????????????????????????? | | ?????????????????????????????????????????????????? | | ?????????????????????????????????????????????????? | | ?????????????????????????????????????????????????? | | ?????????????????????????????????????????????????? | | ?????????????????????????????????????????????????? | | ?????????????????????????????????????????????????? | | ???????????????#?????????????????????????????????? | | ???????????????? ????????????????????????????????? | | ????????????????# ???????????????????????????????? | | ????????????????# ??????????????#???????????????? | | ????????????????# ##??????????? #???????????????? | | ??????????????### ########### #???????????????? | | ???????????#### = #???????????????? | | ???????????? |!u #???????????????? | | ??????????????# # #!###???????????????? | | ??????????????# #???????????????? | | ??????????????# @# #???????????????? | | ???????????????# # # #???????????????? | | ???????????????## d #???????????????? | | ????????????????## # # #???????????????? | | ?????????????????## # #??????????????? | | ?????????????????# # ######?????????? | | ?????????????????## # # #????###### | | ??????????????????# # ## #### #???## # | | ??????????????????## # # #??# #??## | | ?????????????????? #??# #### | | ?????????????????### # ##??# """ | | ??????????????????? ??# ### """ | | ?????????????????? # # # # #?# #?## """ | | ????????????????? ##### #??## | | ???????????????? ! [ g # ??? #???## | | ?????????????????%= ## # ? """ #????## # | | ??????????????????? ## # """ #?????# ## | | ?????????????????????? """ ##?????? #? | | ???????????????????????? ## #??????? #? | | ????????????????????????????####???## ???????? #? | | ????????????????????????????????????# ???????? #? | | ????????????????????????????????????# ???????? #? | | ????????????????????????????????????# ??????????? | | ????????????????????????????????????# ??????????? | | ????????????????????????????????????# ??????????? | +----------------------------------------------------+ Best States ------------- Heat Dissipation 28 Energy Generation 18 Energy Capacity 310 Matter Stores 300 Matter Capacity 300 Sight Range 16 Terrain Scan Range 16 Terrain Scan Density 10 Armor Coverage 900 Resistance: EX 90 Weapon Shielding 33 Evasion (%) 55 Targeting Accuracy 18 Recoil Reduction 2 Item Schematics ----------------- Hcp. Storage Unit | -10/Materials | Hacked Hcp. Battery | -9/Materials | Hacked Hcp. Matter Pod | -9/Materials | Hacked Robot Schematics ------------------ None Fabricated ------------ Nothing Alien Tech Used ----------------- None Achievements -------------- None Challenges ------------ None Game ------ Seed RecyclingBackupHumpback Manual? 0 Play Time 00:32:10 Cumulative 547.7 hours Start 2022.03.20 @ 12:34:14 End 2022.03.20 @ 15:26:51 Sessions 3 Manual Loads 0 Difficulty Rogue Special Mode None Game No. 347 Rogue 347 Adventurer 0 Explorer 0 Win Type - Total 6 Types 4/0/1/0/1/0/0/0/0 Lore% 82 Gallery% 82 Achievement% 73 Wizard Run 0 Options --------- ASCII 0 Keyboard 0 Movement Mouse Keybinds 1 Fullscreen 2 Font 24/Smallcaps Map View 68x50 Tactical HUD 1 Map Filters NONE Filters NONE Steam 1 RUN: a3dd3ebb-f809-4433-a266-a5260e2b147b